bitfinex/quotes_ETHUSD_20250913
["timestamp","ask_amount","ask_price","bid_price","bid_amount"]
[1757779248387,18.835311,4651.9,4651.8,0.001]
[1757779249184,19.852911,4651.9,4651.8,0.001]
[1757779249490,19.93894389,4651.9,4651.8,0.001]
[1757779250206,19.17594389,4651.9,4651.8,0.001]
[1757779250772,18.78134389,4651.9,4651.8,0.001]
[1757779251097,18.4985378,4651.9,4651.8,0.001]
[1757779251288,18.7818841,4651.9,4651.8,0.001]
[1757779251493,18.69585122,4651.9,4651.8,0.001]
[1757779251873,18.78188411,4651.9,4651.8,0.001]
[1757779252273,18.69585122,4651.9,4651.8,0.001]
[1757779253505,14.92085122,4651.9,4651.8,0.001]
[1757779253714,4.88019195,4651.9,4651.8,1.0888]
[1757779253917,9.11640952,4651.9,4651.8,1.5503]
[1757779254086,9.43216426,4651.9,4651.8,1.5503]
[1757779254287,10.22416426,4651.9,4651.8,1.5503]
[1757779255222,10.22416426,4651.9,4651.8,0.001]
[1757779256478,10.22416426,4651.9,4651.8,0.7527]
[1757779256717,11.53263342,4651.9,4651.8,0.7527]
[1757779257020,11.98738186,4651.9,4651.8,0.7527]
[1757779257513,11.98738186,4651.9,4651.8,0.001]
[1757779257694,11.98638186,4651.9,4651.8,0.001]
[1757779258618,11.78900886,4651.9,4651.8,0.001]
[1757779258822,11.98641745,4651.9,4651.8,0.001]
[1757779259027,12.08541745,4651.9,4651.8,0.001]
[1757779259198,12.08541089,4651.9,4651.8,0.001]
[1757779259693,11.88866064,4651.9,4651.8,0.001]
[1757779260086,11.78966064,4651.9,4651.8,0.001]
[1757779260437,11.78766064,4651.9,4651.8,0.001]
[1757779262311,8.02066064,4651.9,4651.8,0.001]
[1757779262493,11.3329122,4651.9,4651.8,0.001]
[1757779262693,11.78766064,4651.9,4651.8,0.001]
[1757779263318,11.78766064,4651.9,4651.8,0.7527]
[1757779263659,8.02066064,4651.9,4651.8,0.2912]
[1757779263804,11.3329122,4651.9,4651.8,0.001]
[1757779264003,11.78766064,4651.9,4651.8,0.001]
[1757779264220,18.88666064,4651.9,4651.8,0.001]
[1757779265816,18.78566064,4651.9,4651.8,0.8042]
[1757779266022,18.78566064,4651.9,4651.8,1.5559]
[1757779266453,16.63600137,4651.9,4651.8,1.5559]
[1757779266754,18.78566064,4651.9,4651.8,1.5559]
[1757779268138,15.02066064,4651.9,4651.8,1.5559]
[1757779268348,18.78466064,4651.9,4651.8,1.5559]
[1757779269410,20.43466064,4651.9,4651.8,0.2912]
[1757779270236,18.46500137,4651.9,4651.8,0.2912]
[1757779270434,20.61466064,4651.9,4651.8,0.7527]
[1757779270639,20.61466064,4651.9,4651.8,1.5559]
[1757779271744,3.21253221,4651.9,4651.8,1.5559]
[1757779272047,0.002,4652.2,4651.9,2.14965927]
[1757779272206,1.65,4652.6,4652.5,2.14938205]
[1757779272407,5.412,4652.6,4652.5,3.70428205]
[1757779272737,5.412,4652.6,4652.5,4.29180496]
[1757779273628,5.412,4652.6,4652.5,5.72180496]
[1757779273957,0.002,4652.7,4652.6,5.14933585]
[1757779274157,1e-08,4652.8,4652.7,5.14928965]
[1757779274326,1e-08,4652.8,4652.7,8.13418965]
[1757779274511,1e-08,4652.8,4652.7,9.28577524]
[1757779279218,3.76290001,4653.3,4653.2,2.14905871]
[1757779279423,0.10910001,4653.3,4653.2,5.12435871]
[1757779280722,0.10910001,4653.3,4653.2,4.69495871]
[1757779280924,0.10910001,4653.3,4653.2,5.12435871]
[1757779281253,0.10910001,4653.3,4653.2,5.8517077]
[1757779287504,0.10910001,4653.3,4653.2,3.70264899]
[1757779287766,0.10910001,4653.3,4653.2,4.69495871]
[1757779287938,0.10910001,4653.3,4653.2,5.16075871]
[1757779290639,0.10910001,4653.3,4653.2,8.16075871]
[1757779294262,0.10910001,4653.3,4653.2,11.91175871]
[1757779295767,0.10910001,4653.3,4653.2,8.16075871]
[1757779295999,0.10910001,4653.3,4653.2,9.19174887]
[1757779298516,0.10910001,4653.3,4653.2,7.61004887]
[1757779298805,0.10910001,4653.3,4653.2,7.92514887]
[1757779302101,0.10910001,4653.3,4653.2,8.72204887]
[1757779302403,0.10910001,4653.3,4653.2,9.18784887]
[1757779302702,0.002,4653.8,4653.2,9.18784887]
[1757779302703,0.002,4653.8,4653.7,2.14882781]
[1757779302867,0.002,4653.8,4653.7,3.60031608]
[1757779303069,0.002,4653.8,4653.7,5.17811608]
[1757779303272,0.002,4653.8,4653.7,5.15662781]
[1757779303502,0.002,4653.8,4653.7,4.69082781]
[1757779304277,0.002,4653.8,4653.7,3.89392781]
[1757779304578,0.002,4653.8,4653.7,3.91541608]
[1757779305686,0.002,4653.8,4653.7,4.66691608]
[1757779305912,0.002,4653.8,4653.7,5.10552781]
[1757779307089,0.002,4653.8,4653.7,6.20557013]
[1757779307393,0.002,4653.8,4653.7,9.20557013]
[1757779309495,0.1092,4653.8,4653.7,9.20557013]
[1757779312193,0.002,4654.3,4654.2,2.14859696]
[1757779312194,0.1092,4654.3,4654.2,2.14859696]
[1757779312391,0.1092,4654.3,4654.2,3.79345666]
[1757779312591,0.1092,4654.3,4654.2,5.32334262]
[1757779312930,0.1092,4654.3,4654.2,8.30185666]
[1757779313512,0.1872,4654.8,4654.7,2.14836616]
[1757779313841,0.1872,4654.8,4654.7,3.57836616]
[1757779314044,0.1872,4654.8,4654.7,5.95443989]
[1757779314753,0.08,4654.8,4654.7,12.23533989]
[1757779314953,0.08,4654.8,4654.7,12.69543989]
[1757779316527,0.08,4654.8,4654.7,8.95443989]
[1757779316821,0.08,4654.8,4654.7,12.69443989]
[1757779317216,0.1092,4655.3,4655.2,2.14813541]
[1757779317412,0.002,4655.3,4655.2,6.33825085]
[1757779317612,0.002,4655.3,4655.2,8.0377695]
[1757779319151,0.002,4655.3,4655.2,8.8435695]
[1757779320148,0.002,4655.3,4655.2,8.0377695]
[1757779320450,0.002,4655.3,4655.2,7.7467695]
[1757779321562,0.002,4655.3,4655.2,8.0377695]
[1757779321780,0.002,4655.3,4655.2,8.8435695]
[1757779321946,0.002,4655.3,4655.2,8.0377695]
[1757779323052,0.002,4655.3,4655.2,11.0377695]
[1757779325249,0.002,4655.3,4655.2,11.8435695]
[1757779325573,0.002,4655.3,4655.2,12.3130695]
[1757779325975,0.002,4655.3,4655.2,11.8435695]
[1757779326136,0.002,4655.3,4655.2,11.0377695]
[1757779326644,0.002,4655.3,4655.2,12.0913837]
[1757779327641,0.002,4655.3,4655.2,12.1985837]
[1757779332178,0.002,4655.3,4655.2,12.1915837]
[1757779332992,0.002,4656.3,4655.2,12.1915837]
[1757779332993,0.002,4656.3,4656.2,2.14767406]
[1757779333208,0.002,4656.3,4656.2,7.3301508]
[1757779333507,0.002,4656.3,4656.2,7.30867406]
[1757779333676,0.002,4656.3,4656.2,10.30867406]
[1757779335418,0.002,4656.3,4656.2,10.59967406]
[1757779335576,0.002,4656.3,4656.2,11.67504721]
[1757779335782,0.002,4656.3,4656.2,12.13324721]
[1757779337212,0.002,4656.3,4656.2,11.67504721]
[1757779337412,0.08,4656.8,4656.7,2.14744346]
[1757779337618,1e-08,4656.8,4656.7,9.09118781]
[1757779337825,1e-08,4656.8,4656.7,9.40698781]
[1757779338002,1e-08,4656.8,4656.7,11.60398781]
[1757779339313,1e-08,4656.8,4656.7,12.06218781]
[1757779340736,0.8169,4658.3,4658.2,2.14675196]
[1757779340935,1.1222,4658.3,4658.2,3.57675196]
[1757779341315,1.5857,4658.3,4658.2,3.57675196]
[1757779345519,0.3053,4658.3,4658.2,7.30175196]
[1757779346351,0.4125,4658.3,4658.2,7.30175196]
[1757779346918,0.3053,4658.3,4658.2,7.30175196]
[1757779347164,0.7688,4658.3,4658.2,7.30175196]
[1757779347740,1.5857,4658.3,4658.2,3.57675196]
[1757779347926,1.74427,4658.3,4658.2,1.43]
[1757779350350,4.68297587,4658.3,4658.2,1.43]
[1757779350552,4.87975024,4658.3,4658.2,1.43]
[1757779350850,4.99780893,4658.3,4658.2,1.43]
[1757779351839,12.17780893,4658.3,4658.2,1.43]
[1757779352146,15.89980893,4658.3,4658.2,1.43]
[1757779353951,15.90180893,4658.3,4658.2,1.43]
[1757779355441,12.17980893,4658.3,4658.2,1.43]
[1757779355642,15.90080893,4658.3,4658.2,1.43]
[1757779355841,12.17980893,4658.3,4658.2,1.43]
[1757779356043,10.03310306,4658.3,4658.2,1.43]
[1757779356362,13.75310306,4658.3,4658.2,1.43]
[1757779357074,13.63504437,4658.3,4658.2,1.43]
[1757779357279,15.78175024,4658.3,4658.2,1.43]
[1757779357781,13.63504437,4658.3,4658.2,1.43]
[1757779357944,8.90137,4658.3,4658.2,1.43]
[1757779358145,12.4618,4658.3,4658.2,1.43]
[1757779358773,11.2063,4658.3,4658.2,1.43]
[1757779359183,7.4873,4658.3,4658.2,3.57675196]
[1757779359387,10.901,4658.3,4658.2,3.57675196]
[1757779359586,7.182,4658.3,4658.2,3.89255196]
[1757779359883,10.901,4658.3,4658.2,3.89255196]
[1757779360254,7.182,4658.3,4658.2,3.89255196]
[1757779360455,10.9,4658.3,4658.2,3.89255196]
[1757779361854,10.9,4658.3,4658.2,4.65955196]
[1757779362055,10.9,4658.3,4658.2,5.11775196]
[1757779362477,10.9,4658.3,4658.2,3.89255196]
[1757779362699,11.2053,4658.3,4658.2,1.43]
[1757779362891,12.95821367,4658.3,4658.2,1.43]
[1757779363091,12.4857,4658.3,4658.2,1.43]
[1757779363257,11.6688,4658.3,4658.2,1.43]
[1757779363761,11.6688,4658.3,4658.2,3.57675196]
[1757779363962,11.2053,4658.3,4658.2,3.57675196]
[1757779366662,11.2053,4658.3,4658.2,5.06245196]
[1757779366663,10.9,4658.3,4658.2,5.06245196]
[1757779367283,0.002,4658.3,4658.2,5.06245196]
[1757779367483,3.717,4658.3,4658.2,5.06245196]
[1757779367795,4.0196,4658.3,4658.2,3.57675196]
[1757779367961,3.717,4658.3,4658.2,3.57675196]
[1757779368168,3.717,4658.3,4658.2,4.63455196]
[1757779368378,3.717,4658.3,4658.2,5.06245196]
[1757779369262,0.002,4658.3,4658.2,5.06245196]
[1757779369581,3.716,4658.3,4658.2,5.06245196]
[1757779370962,3.8232,4658.3,4658.2,5.06245196]
[1757779371165,3.8232,4658.3,4658.2,5.78338056]
[1757779372601,0.1092,4658.3,4658.2,5.78338056]
[1757779374877,0.4063,4658.3,4658.2,3.57675196]
[1757779375209,1.6654,4658.3,4658.2,3.57675196]
[1757779376076,0.4063,4658.3,4658.2,3.57675196]
[1757779376272,0.1092,4658.3,4658.2,3.57675196]
[1757779376505,0.4063,4658.3,4658.2,3.57675196]
[1757779377608,3.8202,4658.3,4658.2,3.86955196]
[1757779377812,3.8202,4658.3,4658.2,3.57675196]
[1757779379004,3.8202,4658.3,4658.2,3.86955196]
[1757779379525,3.713,4658.3,4658.2,5.07365196]
[1757779379727,3.713,4658.3,4658.2,5.79784797]
[1757779379934,0.002,4658.3,4658.2,5.79784797]
[1757779380083,3.712,4658.3,4658.2,5.79784797]
[1757779380388,5.2682,4658.3,4658.2,3.57675196]
[1757779381736,4.4839,4658.3,4658.2,3.57675196]
[1757779381942,5.2682,4658.3,4658.2,1.43]
[1757779382842,6.0602,4658.3,4658.2,1.43]
[1757779383843,13.26747587,4658.3,4658.2,1.43]
[1757779384207,14.75892346,4658.3,4658.2,1.43]
[1757779384402,16.90562933,4658.3,4658.2,1.43]
[1757779384630,14.75892346,4658.3,4658.2,1.43]
[1757779384829,17.02401981,4658.3,4658.2,1.43]
[1757779385111,10.01401981,4658.3,4658.2,1.43]
[1757779395154,0.56752419,4659.8,4658.6,1.1921875]
[1757779395354,0.1072,4659.2,4658.9,2.14640968]
[1757779395520,2.594,4659.1,4659.0,3.32158334]
[1757779395839,2.594,4659.1,4659.0,3.60788334]
[1757779396041,2.594,4659.1,4659.0,4.62631264]
[1757779396626,2.594,4659.1,4659.0,5.27029053]
[1757779397364,1.7542,4659.2,4659.1,2.14633727]
[1757779397563,4.1552,4659.2,4659.1,3.32153727]
[1757779397730,4.1552,4659.2,4659.1,4.64950268]
[1757779399164,0.7867,4662.4,4660.7,2.14560044]
[1757779399464,0.546,4661.5,4659.6,3.0]
[1757779399760,2.1039,4661.8,4660.7,2.43190044]
[1757779399959,1.092,4660.8,4660.7,3.86190044]
[1757779400165,1.092,4660.8,4660.7,5.03710044]
[1757779401028,0.08,4660.8,4660.7,5.03710044]
[1757779401559,0.08,4660.8,4660.7,5.68080475]
[1757779404046,1e-08,4660.8,4660.7,9.46345291]
[1757779404245,6.93459814,4664.7,4660.9,3.792]
[1757779404246,1.647,4662.9,4660.9,3.792]
[1757779404572,1.069,4662.7,4662.6,2.14472611]
[1757779404782,1.39429,4662.7,4662.6,3.57472611]
[1757779405350,0.7867,4665.2,4662.8,3.0]
[1757779405561,4.1579,4664.7,4662.9,1.43]
[1757779405834,0.4569,4664.6,4663.8,2.14413329]
[1757779406034,0.4569,4664.6,4663.9,1.43]
[1757779406234,0.50246,4664.5,4663.9,1.43]
[1757779406570,1.647,4664.4,4663.9,1.43]
[1757779406737,0.2957,4664.0,4663.9,1.43]
[1757779406936,3.9957,4664.0,4663.9,3.5741283]
[1757779407438,3.7,4664.0,4663.9,3.5741283]
[1757779407977,3.7,4664.0,4663.9,5.0356283]
[1757779408178,3.7,4664.0,4663.9,3.8604283]
[1757779409233,1.647,4664.4,4664.3,2.14394442]
[1757779409443,5.346,4664.4,4664.3,4.59214442]
[1757779409742,1.647,4664.4,4664.3,4.59214442]
[1757779410055,4.965,4664.4,4664.3,4.59214442]
[1757779410255,1.647,4664.4,4664.3,4.59214442]
[1757779410581,1.647,4664.4,4664.3,5.03544442]
[1757779411280,1.53512847,4664.4,4664.3,5.03544442]
[1757779411486,0.4569,4665.6,4664.3,5.03544442]
[1757779411697,3.698,4665.2,4664.4,1.19663898]
[1757779411898,0.1064,4664.6,4664.4,0.7319]
[1757779412197,0.1064,4664.6,4664.5,2.4301525]
[1757779412397,0.1064,4664.6,4664.5,3.6053525]
[1757779412750,0.1064,4664.6,4664.5,3.1620525]
[1757779412950,0.1064,4664.6,4664.5,3.18349102]
[1757779413187,0.1064,4664.6,4664.5,3.1620525]
[1757779413399,0.1064,4664.6,4664.5,3.6053525]
[1757779414184,0.1064,4664.6,4664.5,2.4301525]
[1757779414393,0.01,4666.0,4665.8,2.14321362]
[1757779414598,0.1064,4665.4,4665.1,3.31875741]
[1757779414761,0.2957,4665.2,4664.6,0.7319]
[1757779414954,3.697,4665.4,4665.1,2.14357677]
[1757779415312,4.27699,4665.4,4664.6,0.7319]
[1757779415457,0.2957,4665.2,4665.0,2.14358277]
[1757779415651,3.697,4665.2,4665.1,2.14357677]
[1757779415851,3.9927,4665.2,4665.1,2.14357677]
[1757779416684,1.646,4665.7,4665.1,0.2863]
[1757779416885,3.696,4665.3,4665.2,2.16496612]
[1757779418391,3.9917,4665.3,4665.2,2.16496612]
[1757779418590,4.3613,4665.3,4665.2,2.16496612]
[1757779418756,4.3613,4665.3,4665.2,3.59496612]
[1757779418956,3.9917,4665.3,4665.2,3.59496612]
[1757779419371,3.696,4665.3,4665.2,3.88126612]
[1757779419921,3.696,4665.3,4665.2,3.59496612]
[1757779420112,1.646,4665.7,4665.3,2.14348487]
[1757779420415,4.1519,4665.6,4665.4,0.02143438]
[1757779420729,0.2957,4665.3,4663.8,0.4433]
[1757779420875,0.2957,4665.3,4665.0,2.14358373]
[1757779421075,0.4569,4665.2,4665.0,2.14358373]
[1757779421313,0.65846,4665.5,4665.1,2.14357677]
[1757779421515,0.2957,4665.2,4665.1,2.14357677]
[1757779423136,0.2957,4665.2,4664.8,0.02143714]
[1757779423486,0.2957,4665.2,4665.1,2.14357677]
[1757779424623,0.2957,4665.2,4664.5,0.02143852]
[1757779424624,0.2957,4665.2,4664.7,2.14374745]
[1757779424784,0.1064,4664.5,4664.4,2.87579846]
[1757779424991,3.8004,4664.5,4664.4,3.60539846]
[1757779426308,3.8004,4664.5,4664.4,2.43019846]
[1757779426788,3.8004,4664.5,4664.4,3.65739846]
[1757779428037,0.1064,4664.5,4664.4,3.67883744]
[1757779428211,0.1064,4664.5,4664.4,4.26111297]
[1757779428520,0.1064,4664.5,4664.4,7.26111297]
[1757779428722,0.1064,4664.5,4664.4,7.23967399]
[1757779430297,1e-08,4664.5,4664.4,7.23967399]
[1757779430497,1.31982419,4666.6,4664.5,3.0]
[1757779430697,0.4725,4666.2,4665.6,2.14334705]
[1757779430896,5.6375,4665.7,4665.6,2.14334705]
[1757779431704,0.1064,4665.6,4664.5,2.1438525]
[1757779431903,0.4725,4665.5,4665.4,2.14343893]
[1757779432103,1.42508,4665.5,4665.4,2.14343893]
[1757779432309,0.95258,4665.5,4665.4,2.14343893]
[1757779433209,1.42508,4665.5,4665.4,3.57343893]
[1757779433530,2.15438,4665.5,4665.4,3.57343893]
[1757779434250,3.9915,4665.5,4665.4,1.43]
[1757779434482,1.5003,4665.5,4665.4,1.43]
[1757779434678,5.64481901,4665.5,4665.4,1.43]
[1757779434991,5.1923,4665.5,4665.4,3.57343893]
[1757779435192,5.64481901,4665.5,4665.4,3.57343893]
[1757779435379,6.65936042,4665.5,4665.4,3.57343893]
[1757779435560,6.77765719,4665.5,4665.4,3.57343893]
[1757779436292,6.04835719,4665.5,4665.4,3.57343893]
[1757779436789,5.45756042,4665.5,4665.4,3.57343893]
[1757779437292,5.57585719,4665.5,4665.4,3.57343893]
[1757779437496,5.45756042,4665.5,4665.4,3.57343893]
[1757779437789,5.57585719,4665.5,4665.4,3.57343893]
[1757779438022,5.45756042,4665.5,4665.4,3.57343893]
[1757779438180,5.57585719,4665.5,4665.4,3.57343893]
[1757779438383,6.04835719,4665.5,4665.4,3.57343893]
[1757779438898,6.04875442,4665.5,4665.4,3.57343893]
[1757779439685,5.57625442,4665.5,4665.4,3.57343893]
[1757779439901,5.27775442,4665.5,4665.4,3.88453893]
[1757779440225,6.04875442,4665.5,4665.4,3.57343893]
[1757779440379,6.04875442,4665.5,4665.4,1.43]
[1757779440589,6.77805442,4665.5,4665.4,1.43]
[1757779441103,2.14357745,4665.1,4664.5,0.13995429]
[1757779441435,0.75902229,4664.8,4664.5,0.13995429]
[1757779441588,0.86759853,4664.6,4664.5,0.13995429]
[1757779441787,1.63597282,4664.6,4664.5,0.13995429]
[1757779441987,2.83777282,4664.6,4664.5,0.13995429]
[1757779442183,3.73105233,4664.6,4664.5,0.13995429]
[1757779442636,6.09776034,4664.6,4664.5,0.13995429]
[1757779443534,2.71817683,4664.6,4664.5,0.13995429]
[1757779443692,5.6511538,4664.6,4664.5,0.13995429]
[1757779444182,6.1236538,4664.6,4664.5,0.13995429]
[1757779444383,6.69201804,4664.6,4664.5,0.13995429]
[1757779444720,6.1236538,4664.6,4664.5,0.13995429]
[1757779444906,6.69201804,4664.6,4664.5,0.13995429]
[1757779445306,6.1236538,4664.6,4664.5,0.13995429]
[1757779445812,5.67113479,4664.6,4664.5,0.13995429]
[1757779446383,8.54424133,4664.6,4664.5,0.13995429]
[1757779447219,8.99676034,4664.6,4664.5,0.13995429]
[1757779447525,8.54424133,4664.6,4664.5,0.13995429]
[1757779447685,8.52426034,4664.6,4664.5,0.13995429]
[1757779448021,15.56424133,4664.6,4664.5,0.13995429]
[1757779448181,16.01676034,4664.6,4664.5,0.13995429]
[1757779448895,13.8729538,4664.6,4664.5,0.13995429]
[1757779449079,16.01576034,4664.6,4664.5,0.13995429]
[1757779449283,13.1426538,4664.6,4664.5,0.13995429]
[1757779449516,9.4526538,4664.6,4664.5,0.13995429]
[1757779449815,11.91913479,4664.6,4664.5,0.45105429]
[1757779450114,11.02585528,4664.6,4664.5,0.45105429]
[1757779450523,10.90755851,4664.6,4664.5,2.59490679]
[1757779450687,10.90755851,4664.6,4664.5,3.83120679]
[1757779450889,10.90755851,4664.6,4664.5,1.68735429]
[1757779451102,10.90755851,4664.6,4664.5,1.22605429]
[1757779451290,10.90755851,4664.6,4664.5,3.36990679]
[1757779451512,10.90755851,4664.6,4664.5,1.22605429]
[1757779451830,12.16301436,4664.6,4664.5,0.13995429]
[1757779452186,12.46151436,4664.6,4664.5,0.13995429]
[1757779452588,12.16301436,4664.6,4664.5,0.45105429]
[1757779453333,8.27545585,4664.6,4664.5,3.83120679]
[1757779453522,7.02,4664.6,4664.5,3.83120679]
[1757779453723,3.689,4664.6,4664.5,3.83120679]
[1757779454646,1.645,4664.7,4664.6,2.14380654]
[1757779454811,5.334,4664.7,4664.6,3.4015446]
[1757779455015,5.334,4664.7,4664.6,3.7126446]
[1757779455334,5.4404,4664.7,4664.6,3.7126446]
[1757779455538,1.7514,4664.7,4664.6,3.7126446]
[1757779455734,1.7514,4664.7,4664.6,4.52678374]
[1757779455903,5.334,4664.7,4664.6,4.50534568]
[1757779456509,5.334,4664.7,4664.6,7.50534568]
[1757779457305,1.645,4664.7,4664.6,7.50534568]
[1757779457533,5.334,4664.7,4664.6,7.50534568]
[1757779459306,5.334,4664.7,4664.6,6.69120654]
[1757779459507,0.002,4664.8,4664.7,5.14376058]
[1757779459703,0.002,4664.8,4664.7,3.32316058]
[1757779459704,3.69,4664.8,4664.7,3.32316058]
[1757779460053,3.69,4664.8,4664.7,3.62856058]
[1757779460254,0.002,4664.8,4664.7,3.64999818]
[1757779460457,3.69,4664.8,4664.7,7.54337868]
[1757779460664,3.69,4664.8,4664.7,6.62856058]
[1757779462117,3.69,4664.8,4664.7,6.19036058]
[1757779462369,3.689,4664.8,4664.7,6.19036058]
[1757779463269,3.994,4664.8,4664.5,0.13995429]
[1757779463564,0.7208,4664.7,4664.6,2.14379684]
[1757779463717,0.7208,4664.7,4664.5,0.13995429]
[1757779463916,3.994,4664.8,4664.5,0.13995429]
[1757779463917,1.4808,4664.6,4664.5,0.13995429]
[1757779466387,0.305,4664.6,4664.5,2.28480679]
[1757779466663,3.992,4664.6,4664.5,2.28480679]
[1757779467951,0.002,4664.8,4664.7,2.14376058]
[1757779468158,3.689,4664.8,4664.6,2.14380214]
[1757779468358,0.76,4664.7,4664.6,2.14380214]
[1757779468554,1.4808,4664.7,4664.5,0.14095429]
[1757779468767,4.0579,4664.8,4664.5,0.14095429]
[1757779468768,0.7208,4664.6,4664.5,0.14095429]
[1757779468957,4.7118,4664.6,4664.5,0.14095429]
[1757779469162,5.67507,4664.6,4664.5,0.14095429]
[1757779469361,1.26827,4664.6,4664.5,0.14095429]
[1757779469570,3.991,4664.6,4664.5,0.14095429]
[1757779469773,3.991,4664.6,4664.5,2.28480679]
[1757779470071,3.991,4664.6,4664.5,0.14095429]
[1757779470475,3.991,4664.6,4664.5,2.28480679]
[1757779471650,5.1668,4664.6,4664.5,0.14095429]
[1757779471859,5.68368,4664.6,4664.5,0.14095429]
[1757779472070,4.96288,4664.6,4664.5,2.28480679]
[1757779472788,4.50788,4664.6,4664.5,2.28480679]
[1757779475301,3.99,4664.6,4664.5,2.28480679]
[1757779475656,5.635,4664.6,4664.5,2.28480679]
[1757779476198,6.09,4664.6,4664.5,0.14095429]
[1757779476402,5.635,4664.6,4664.5,2.28480679]
[1757779476925,6.09,4664.6,4664.5,0.14095429]
[1757779477074,6.6992,4664.6,4664.5,2.28480679]
[1757779477270,6.6992,4664.6,4664.5,0.14095429]
[1757779477491,5.9392,4664.6,4664.5,2.59020679]
[1757779477658,5.33,4664.6,4664.5,2.59020679]
[1757779478086,5.33,4664.6,4664.5,2.28480679]
[1757779478269,5.635,4664.6,4664.5,2.28480679]
[1757779478664,6.09,4664.6,4664.5,2.28480679]
[1757779479235,1.95,4664.6,4664.5,2.28480679]
[1757779479366,5.635,4664.6,4664.5,2.28480679]
[1757779480686,5.635,4664.6,4664.5,0.14095429]
[1757779480887,5.635,4664.6,4664.5,2.28480679]
[1757779481265,5.635,4664.6,4664.5,0.14095429]
[1757779481469,6.6992,4664.6,4664.5,0.14095429]
[1757779481692,6.6992,4664.6,4662.3,0.792]
[1757779481693,6.2442,4664.6,4662.3,0.792]
[1757779481893,6.2442,4664.6,4657.1,0.7412]
[1757779481894,6.965,4664.6,4657.1,0.7412]
[1757779482096,6.965,4664.6,4635.4,7.70475555]
[1757779482097,4.89529901,4656.4,4653.3,9.40124293]
[1757779482298,1.0,4653.8,4652.4,0.4382]
[1757779482591,23.83693888,4653.7,4652.5,0.4382]
[1757779482792,19.6688302,4653.6,4652.3,5.527]
[1757779483012,1.0,4652.7,4652.2,1.645]
[1757779483224,1.24110298,4653.5,4648.8,7.3720721]
[1757779483225,1.0,4652.1,4651.1,0.069087]
[1757779483516,1.0,4652.1,4652.0,0.3054]
[1757779483697,1.83362356,4652.1,4652.0,1.9504]
[1757779484087,1.83362356,4652.1,4652.0,7.5574]
[1757779484291,1.83362356,4652.1,4652.0,7.2996809]
[1757779485290,0.83362356,4652.1,4652.0,2.1308809]
[1757779485494,0.83362356,4652.1,4652.0,7.74037703]
[1757779485691,0.83362356,4652.1,4652.0,7.7188809]
[1757779485887,0.83362356,4652.1,4652.0,8.4374809]
[1757779486103,0.63988981,4652.1,4652.0,8.4374809]
[1757779486301,0.83157487,4652.1,4652.0,8.4374809]
[1757779486688,0.63988981,4652.1,4652.0,8.4374809]
[1757779487118,0.63988981,4652.1,4652.0,2.8494809]
[1757779487292,0.08,4652.8,4652.7,2.14928965]
[1757779487617,0.52083168,4652.8,4652.7,2.14928965]
[1757779487781,0.52083168,4652.8,4652.7,2.47548254]
[1757779488483,5.87800946,4653.1,4652.1,0.792]
[1757779488813,1.0,4654.1,4654.0,2.14868929]
[1757779489119,1.0,4654.3,4654.1,2.14864313]
[1757779489311,7.34751183,4654.4,4652.8,2.00113702]
[1757779489631,1.0,4654.3,4654.0,2.14866692]
[1757779489924,1.0,4654.3,4654.1,7.69834941]
[1757779490091,1.0,4654.3,4654.1,7.68761789]
[1757779490415,1.0,4654.3,4654.2,0.01073083]
[1757779490710,0.19089022,4654.3,4654.1,7.68761789]
[1757779490899,0.19089022,4654.2,4654.1,7.68761789]
[1757779491103,0.19089022,4654.2,4654.1,3.79564313]
[1757779491283,4.95432956,4654.2,4654.1,3.79564313]
[1757779491683,4.95432956,4654.2,4654.1,6.79564313]
[1757779492188,4.95432956,4654.2,4654.1,1.647]
[1757779492412,0.19089022,4654.2,4654.1,3.79564313]
[1757779492712,0.19089022,4654.2,4654.1,4.647]
[1757779492922,0.19089022,4654.2,4654.1,10.167]
[1757779493131,1.0,4654.3,4654.2,2.14859696]
[1757779493484,1.0,4654.3,4654.1,1.647]
[1757779493782,1.0,4654.3,4654.2,5.484]
[1757779493985,1.0,4654.3,4654.2,2.14859696]
[1757779494184,1.0,4654.3,4654.2,7.62559696]
[1757779494414,1.0,4654.3,4654.2,7.62259696]
[1757779494617,2.83035016,4654.3,4654.2,7.62259696]
[1757779495007,1.0,4654.3,4654.2,7.62259696]
[1757779495209,1.83035016,4654.5,4654.2,7.45272973]
[1757779495396,1.91035016,4654.8,4654.5,2.14844391]
[1757779495727,0.08,4654.8,4654.7,2.14836616]
[1757779496023,1.81212451,4654.8,4654.7,10.61036616]
[1757779496817,0.08,4654.8,4654.7,10.61036616]
[1757779497118,0.54922075,4655.0,4654.8,3.0]
[1757779497326,0.54922075,4655.0,4654.9,2.15899661]
[1757779497826,1.83035016,4657.9,4656.7,2.14744346]
[1757779498130,0.4404,4658.4,4656.9,3.0]
[1757779498311,1.0,4657.6,4657.5,2.14707461]
[1757779498499,1.0,4657.6,4657.5,9.22507461]
[1757779499036,1.0,4657.6,4657.5,12.22507461]
[1757779499387,1.0,4658.1,4657.5,6.79507461]
[1757779499591,1.0,4658.1,4658.0,2.14684413]
[1757779499820,1.19114807,4658.1,4658.0,2.14684413]
[1757779499990,0.19114807,4658.1,4658.0,2.14684413]
[1757779500193,1.92004807,4658.1,4658.0,7.56184413]
[1757779500420,2.36050812,4658.1,4658.0,7.56184413]
[1757779500789,0.63160812,4658.1,4658.0,7.56184413]
[1757779500993,4.10367922,4661.7,4660.7,2.14560044]
[1757779501221,0.08,4660.8,4660.7,3.81505644]
[1757779501425,0.08,4660.8,4660.7,12.22805644]
[1757779501643,0.08,4660.8,4660.7,6.79360044]
[1757779501822,0.08,4660.8,4660.7,12.20260044]
[1757779502206,0.08,4660.8,4660.7,6.79360044]
[1757779502419,0.08,4660.8,4660.7,12.19460044]
[1757779502619,0.08,4660.8,4660.7,12.19060044]
[1757779503020,0.08,4660.8,4660.7,6.79360044]